[Event "Niedersachsen-ch A 2024"]
[Site "Verden Aller"]
[Date "2024.01.05"]
[Round "4.23"]
[White "Stoy, Ulf"]
[Black "Behn, Cord"]
[Result "1-0"]
[ECO "A28"]
[WhiteElo "1985"]
[BlackElo "1837"]
[Annotator "NA"]
[PlyCount "119"]
[EventDate "2024.01.01"]
[EventType "swiss"]
[EventCountry "GER"]
[SourceTitle "playchess.com"]
[Source "ChessBase"]
[SourceQuality "1"]
[TimeControl "40/5400+30:1800+30"]

1. c4 {[%emt 0:00:01]} e5 {[%emt 0:00:18]} 2. Nc3 {[%emt 0:00:32]} Nf6 {[%emt 0:00:09]} 3. Nf3 {[%emt 0:00:09]} Nc6 {[%emt 0:00:16]} 4. e4 {[%emt 0:00:33]} Bb4 {[%emt 0:02:27]} 5. d3 {[%emt 0:00:10]} O-O {[%emt 0:00:11]} 6. g3 {[%emt 0:00:57]} d6 {[%emt 0:02:20]} 7. Bg2 {[%emt 0:00:48]} h6 {[%emt 0:02:17]} 8. a3 {[%emt 0:04:28]} Bc5 {[%emt 0:03:39]} 9. b4 {[%emt 0:00:53]} Bb6 {[%emt 0:01:37]} 10. O-O {[%emt 0:00:21]} a5 {[%emt 0:00:51]} 11. b5 {[%emt 0:00:57]} Nd4 {[%emt 0:00:15]} 12. Nxd4 {[%emt 0:04:20]} Bxd4 {[%emt 0:00:11]} 13. Bb2 {[%emt 0:00:15]} Be6 {[%emt 0:08:45]} 14. h3 {[%emt 0:00:59]} c6 {[%emt 0:02:26]} 15. a4 {[%emt 0:10:06]} Rc8 {[%emt 0:06:17]} 16. Qb3 {[%emt 0:05:08]} Nh5 {[%emt 0:10:40]} 17. Nd1 {[%emt 0:10:52]} Nxg3 {[%emt 0:06:44]} 18. Bxd4 {[%emt 0:00:46]} Ne2+ {[%emt 0:00:08]} 19. Kh2 Nxd4 20. Qb2 {[%emt 0:58:15]} d5 {[%emt 0:50:59]} 21. f4 {[%emt 0:00:30]} f6 {[%emt 0:00:00]} 22. f5 {[%emt 0:00:00]} Bf7 {[%emt 0:00:00]} 23. Ne3 {[%emt 0:00:00]} dxc4 {[%emt 0:00:00]} 24. dxc4 {[%emt 0:00:00]} cxb5 {[%emt 0:00:00]} 25. cxb5 {[%emt 0:00:00]} Qd6 {[%emt 0:00:00]} 26. Rg1 {[%emt 0:00:00]} Rc5 {[%emt 0:00:00]} 27. Qf2 {[%emt 0:00:00]} Rfc8 {[%emt 0:00:00]} 28. Qh4 {[%emt 0:00:00]} Kh7 {[%emt 0:00:00]} 29. Rad1 {[%emt 0:00:00]} Bb3 {[%emt 0:00:00]} 30. Rdf1 {[%emt 0:00:00]} Rc3 {[%emt 0:00:00]} 31. Ng4 {[%emt 0:00:00]} Qf8 {[%emt 0:00:00]} 32. Rf2 {[%emt 0:00:00]} Rc2 {[%emt 0:00:00]} 33. Rxc2 {[%emt 0:00:00]} Rxc2 {[%emt 0:00:00]} 34. Kh1 {[%emt 0:00:00]} Bxa4 {[%emt 0:00:00]} 35. Qh5 {[%emt 0:00:00]} Bxb5 {[%emt 0:00:00]} 36. Qg6+ {[%emt 0:00:00]} Kh8 {[%emt 0:00:00]} 37. Ne3 {[%emt 0:00:00]} Rb2 {[%emt 0:00:41]} 38. Nd5 {[%emt 0:00:00]} a4 {[%emt 0:03:43]} 39. Nc7 {[%emt 0:00:00]} Bd7 {[%emt 0:01:00]} 40. Qg4 {[%emt 0:05:01]} a3 {[%emt 0:00:32]} 41. Bf1 {[%emt 0:31:42]} a2 {[%emt 0:06:26]} 42. Bc4 {[%emt 0:00:00]} b5 {[%emt 0:08:42]} 43. Bd5 {[%emt 0:00:00]} b4 {[%emt 0:01:34]} 44. Ne6 {[%emt 0:00:00]} Bxe6 {[%emt 0:00:57]} 45. fxe6 {[%emt 0:00:00]} Qe7 {[%emt 0:00:25]} 46. Qh5 {[%emt 0:00:00]} Nxe6 {[%emt 0:02:28]} 47. Qg4 {[%emt 0:00:00]} Rb1 {[%emt 0:03:36]} 48. Bxa2 {[%emt 0:00:00]} Rxg1+ {[%emt 0:00:07]} 49. Qxg1 {[%emt 0:00:00]} Nd4 {[%emt 0:00:44]} 50. Qd1 {[%emt 0:00:00]} Qc5 {[%emt 0:01:16]} 51. Bd5 {[%emt 0:00:00]} Qc3 {[%emt 0:01:22]} 52. Qa4 {[%emt 0:00:00]} Qxh3+ {[%emt 0:00:10]} 53. Kg1 {[%emt 0:00:00]} Qc8 {[%emt 0:02:11]} 54. Qxb4 {[%emt 0:00:00]} Qc1+ {[%emt 0:03:04]} 55. Kg2 {[%emt 0:00:00]} Qc2+ {[%emt 0:01:03]} 56. Kg3 {[%emt 0:00:00]} Qd3+ {[%emt 0:00:37]} 57. Kh4 {[%emt 0:00:00]} Nf3+ {[%emt 0:01:26]} 58. Kh5 {[%emt 0:00:00]} g6+ {[%emt 0:00:58]} 59. Kxg6 {[%emt 0:00:00]} Nh4+ {[%emt 0:00:11]} 60. Kf7 {[%emt 0:01:30]} 1-0

[Event "Niedersachsen-ch A 2024"]
[Site "Verden Aller"]
[Date "2024.01.05"]
[Round "4.24"]
[White "Poelig, Juergen"]
[Black "Kieselbach, Marvin"]
[Result "0-1"]
[ECO "A05"]
[WhiteElo "1819"]
[BlackElo "1926"]
[Annotator "NA RC"]
[PlyCount "108"]
[EventDate "2024.01.01"]
[EventType "swiss"]
[EventCountry "GER"]
[SourceTitle "playchess.com"]
[Source "ChessBase"]
[SourceQuality "1"]
[TimeControl "40/5400+30:1800+30"]

1. Nf3 {[%emt 0:00:02]} Nf6 {[%emt 0:00:09]} 2. g3 {[%emt 0:00:09]} g6 {[%emt 0:00:05]} 3. Bg2 {[%emt 0:00:05]} Bg7 {[%emt 0:00:05]} 4. O-O {[%emt 0:00:08]} O-O {[%emt 0:00:24]} 5. d3 {[%emt 0:00:16]} c5 {[%emt 0:00:30]} 6. e4 {[%emt 0:00:32]} Nc6 {[%emt 0:00:12]} 7. c3 {[%emt 0:00:21]} d6 {[%emt 0:01:00]} 8. Re1 {[%emt 0:00:26]} e5 {[%emt 0:00:11]} 9. a3 {[%emt 0:00:48]} Be6 {[%emt 0:00:30]} 10. h3 {[%emt 0:01:53]} b5 {[%emt 0:09:55]} 11. d4 {[%emt 0:10:38]} cxd4 {[%emt 0:03:15]} 12. cxd4 {[%emt 0:00:02]} exd4 {[%emt 0:01:20]} 13. Nxd4 {[%emt 0:00:03]} Nxd4 {[%emt 0:00:09]} 14. Qxd4 {[%emt 0:00:15]} Nd5 {[%emt 0:04:49]} 15. Qd3 {[%emt 0:05:15]} Nb6 {[%emt 0:01:10]} 16. Nc3 {[%emt 0:08:35]} Rc8 {[%emt 0:06:10]} 17. Bd2 {[%emt 0:17:01]} Nc4 {[%emt 0:05:24]} 18. Rab1 {[%emt 0:03:16]} Qd7 {[%emt 0:06:46]} 19. Kh2 {[%emt 0:01:21]} a5 {[%emt 0:01:59]} 20. Rec1 {[%emt 0:08:50]} Rc7 {[%emt 0:16:24]} 21. Bf4 {[%emt 0:08:44]} Rfc8 {[%emt 0:02:04]} 22. Nd1 {[%emt 0:04:14]} h6 {[%emt 0:06:24]} 23. h4 {[%emt 0:01:07]} Qd8 {[%emt 0:03:49]} 24. Bh3 {[%emt 0:06:31]} Bxh3 {[%emt 0:03:25]} 25. Kxh3 {[%emt 0:00:02]} g5 {[%emt 0:00:19]} 26. hxg5 {[%emt 0:00:51]} hxg5 {[%emt 0:00:07]} 27. Bd2 {[%emt 0:07:08]} Qf6 {[%emt 0:02:26]} 28. Bc3 {[%emt 0:04:12]} Qh6+ {[%emt 0:01:15]} 29. Kg2 {[%emt 0:00:27]} g4 {[%emt 0:02:48]} 30. Bxg7 {[%emt 0:04:57]} Qh3+ {[%emt 0:02:57]} 31. Kg1 {[%emt 0:00:04]} Kxg7 {[%emt 0:00:13]} 32. Qf1 {[%emt 0:00:51]} Qxf1+ {[%emt 0:01:07]} 33. Kxf1 {[%emt 0:00:25]} Nd2+ {[%emt 0:00:05]} 34. Ke2 {[%emt 0:01:52]} Rxc1 {[%emt 0:00:31]} 35. Rxc1 {[%emt 0:00:36]} Rxc1 {[%emt 0:00:06]} 36. Kxd2 {[%emt 0:00:10]} Rc5 {[%emt 0:11:13]} 37. Ne3 {[%emt 0:01:02]} Rg5 {[%emt 0:00:24]} 38. Nf5+ {[%emt 0:00:20]} Rxf5 {[%emt 0:00:29]} 39. exf5 {[%emt 0:00:02]} Kf6 {[%emt 0:00:15]} 40. Kd3 {[%emt 0:02:12]} Kxf5 {[%emt 0:00:06]} 41. Kd4 {[%emt 0:30:37]} Ke6 {[%emt 0:32:51]} 42. b3 {[%emt 0:00:00]} f5 {[%emt 0:00:00]} 43. a4 {[%emt 0:00:00]} bxa4 {[%emt 0:00:00]} 44. bxa4 {[%emt 0:00:00]} d5 {[%emt 0:00:00]} 45. Ke3 {[%emt 0:00:00]} Kd6 {[%emt 0:00:00]} 46. Kd4 {[%emt 0:01:13]} Ke6 {[%emt 0:00:00]} 47. Ke3 {[%emt 0:00:34]} Ke5 {[%emt 0:00:00]} 48. Kd3 {[%emt 0:01:50]} d4 {[%emt 0:00:00]} 49. Kd2 {[%emt 0:01:34]} Ke4 {[%emt 0:00:00]} 50. Ke2 {[%emt 0:00:44]} d3+ {[%emt 0:00:00]} 51. Kd2 {[%emt 0:00:18]} Kd4 {[%emt 0:00:00]} 52. Kd1 {[%emt 0:00:50]} Kc3 {[%emt 0:00:00]} 53. Kc1 {[%emt 0:00:09]} d2+ {[%emt 0:00:00]} 54. Kd1 {[%emt 0:00:01]} Kd3 {[%emt 0:00:00]} 0-1

[Event "Niedersachsen-ch A 2024"]
[Site "Verden Aller"]
[Date "2024.01.05"]
[Round "4.25"]
[White "Thomas, Jeremy"]
[Black "Tenne, Fabian"]
[Result "1-0"]
[ECO "C02"]
[WhiteElo "1893"]
[BlackElo "1817"]
[Annotator "NA RC"]
[PlyCount "86"]
[EventDate "2024.01.01"]
[EventType "swiss"]
[EventCountry "GER"]
[SourceTitle "playchess.com"]
[Source "ChessBase"]
[SourceQuality "1"]
[TimeControl "40/5400+30:1800+30"]

1. e4 {[%emt 0:00:03]} e6 {[%emt 0:00:21]} 2. d4 {[%emt 0:00:01]} d5 {[%emt 0:00:07]} 3. e5 {[%emt 0:00:04]} c5 {[%emt 0:00:11]} 4. c3 {[%emt 0:00:05]} Nc6 {[%emt 0:00:04]} 5. Nf3 {[%emt 0:00:13]} Qb6 {[%emt 0:00:09]} 6. Bd3 {[%emt 0:00:05]} Bd7 {[%emt 0:00:37]} 7. dxc5 {[%emt 0:00:44]} Bxc5 {[%emt 0:00:08]} 8. O-O {[%emt 0:00:25]} a5 {[%emt 0:01:19]} 9. Na3 {[%emt 0:03:19]} Nge7 {[%emt 0:03:23]} 10. Qe2 {[%emt 0:02:47]} Ng6 {[%emt 0:02:38]} 11. h4 {[%emt 0:01:32]} Bxa3 {[%emt 0:05:24]} 12. bxa3 {[%emt 0:00:02]} Qc5 {[%emt 0:00:35]} 13. Rb1 {[%emt 0:09:40]} Rb8 {[%emt 0:02:01]} 14. h5 {[%emt 0:02:22]} Nge7 {[%emt 0:01:46]} 15. Rb5 {[%emt 0:01:38]} Qa7 {[%emt 0:03:37]} 16. Be3 {[%emt 0:03:08]} b6 {[%emt 0:02:20]} 17. Rfb1 {[%emt 0:02:27]} d4 {[%emt 0:01:35]} 18. cxd4 {[%emt 0:03:40]} Nd5 {[%emt 0:00:03]} 19. Bd2 {[%emt 0:01:32]} Nce7 {[%emt 0:05:12]} 20. R5b2 {[%emt 0:02:38]} Bc6 {[%emt 0:05:06]} 21. Ng5 {[%emt 0:02:21]} Nf5 {[%emt 0:02:09]} 22. Bxf5 {[%emt 0:02:09]} exf5 {[%emt 0:00:02]} 23. Rc1 {[%emt 0:01:13]} Ba8 {[%emt 0:03:07]} 24. Qb5+ {[%emt 0:03:14]} Kf8 {[%emt 0:01:22]} 25. Rbc2 {[%emt 0:01:47]} Qb7 {[%emt 0:00:51]} 26. f3 {[%emt 0:00:28]} Ke7 {[%emt 0:09:43]} 27. Rc6 {[%emt 0:09:59]} Qd7 {[%emt 0:01:24]} 28. e6 {[%emt 0:04:37]} Bxc6 {[%emt 0:00:21]} 29. Rxc6 {[%emt 0:01:12]} Nc7 {[%emt 0:04:22]} 30. Qc4 {[%emt 0:04:01]} Nxe6 {[%emt 0:01:54]} 31. Nxe6 {[%emt 0:01:19]} Rhc8 {[%emt 0:00:15]} 32. Nc7 {[%emt 0:00:57]} Kd8 {[%emt 0:01:22]} 33. Bf4 {[%emt 0:00:33]} Rb7 {[%emt 0:01:04]} 34. Rd6 {[%emt 0:00:42]} Rbxc7 {[%emt 0:01:12]} 35. Rxd7+ {[%emt 0:00:04]} Rxd7 {[%emt 0:00:12]} 36. Qb3 {[%emt 0:00:20]} Rb7 {[%emt 0:02:21]} 37. Qd5+ {[%emt 0:01:02]} Rd7 {[%emt 0:00:07]} 38. Qxf5 {[%emt 0:00:15]} Rc4 {[%emt 0:00:27]} 39. Be3 {[%emt 0:00:43]} Rc3 {[%emt 0:00:15]} 40. Kf2 {[%emt 0:01:13]} Rxa3 {[%emt 0:00:14]} 41. Qxh7 {[%emt 0:30:18]} Rxa2+ {[%emt 0:30:15]} 42. Kg3 {[%emt 0:00:17]} Re2 {[%emt 0:00:17]} 43. Qg8+ {[%emt 0:00:35]} Ke7 {[%emt 0:00:16]} 1-0

[Event "Niedersachsen-ch A 2024"]
[Site "Verden Aller"]
[Date "2024.01.05"]
[Round "4.27"]
[White "Gehrke, Mathias"]
[Black "Buecklers, Martin"]
[Result "0-1"]
[ECO "A28"]
[WhiteElo "1761"]
[BlackElo "1877"]
[Annotator "NA RC"]
[PlyCount "62"]
[EventDate "2024.01.01"]
[EventType "swiss"]
[EventCountry "GER"]
[SourceTitle "playchess.com"]
[Source "ChessBase"]
[SourceQuality "1"]
[TimeControl "40/5400+30:1800+30"]

1. c4 {[%emt 0:00:05]} e5 {[%emt 0:00:23]} 2. Nc3 {[%emt 0:00:17]} Nf6 {[%emt 0:00:06]} 3. Nf3 {[%emt 0:01:04]} Nc6 {[%emt 0:01:35]} 4. d3 {[%emt 0:00:31]} Bb4 {[%emt 0:03:33]} 5. Bd2 {[%emt 0:00:22]} d6 {[%emt 0:02:05]} 6. g3 {[%emt 0:01:11]} O-O {[%emt 0:00:59]} 7. Bg2 {[%emt 0:00:08]} Be6 {[%emt 0:05:24]} 8. O-O {[%emt 0:00:46]} h6 {[%emt 0:01:15]} 9. a3 {[%emt 0:01:07]} Bxc3 {[%emt 0:00:06]} 10. Bxc3 {[%emt 0:00:20]} Qd7 {[%emt 0:03:32]} 11. Re1 {[%emt 0:01:53]} e4 {[%emt 0:06:38]} 12. Bxf6 {[%emt 0:02:10]} exf3 {[%emt 0:00:22]} 13. Bxg7 {[%emt 0:01:01]} Kxg7 {[%emt 0:00:46]} 14. Bxf3 {[%emt 0:00:14]} Rab8 {[%emt 0:05:32]} 15. Qb3 {[%emt 0:02:17]} f6 {[%emt 0:01:00]} 16. e3 {[%emt 0:01:37]} b5 {[%emt 0:03:39]} 17. Qc2 {[%emt 0:01:04]} Ne5 {[%emt 0:00:49]} 18. Be2 {[%emt 0:00:23]} bxc4 {[%emt 0:03:23]} 19. dxc4 {[%emt 0:00:53]} Bg4 {[%emt 0:02:28]} 20. Red1 {[%emt 0:07:36]} Bxe2 {[%emt 0:01:50]} 21. Qxe2 {[%emt 0:00:06]} Qc6 {[%emt 0:01:06]} 22. Rac1 {[%emt 0:04:40]} Nf3+ {[%emt 0:01:22]} 23. Kf1 {[%emt 0:00:12]} Nxh2+ {[%emt 0:00:22]} 24. Kg1 {[%emt 0:00:11]} Nf3+ {[%emt 0:00:15]} 25. Kf1 {[%emt 0:00:05]} Ne5 {[%emt 0:04:21]} 26. Rd5 {[%emt 0:00:57]} Qd7 {[%emt 0:01:42]} 27. Kg2 {[%emt 0:01:06]} Qg4 {[%emt 0:04:29]} 28. f3 {[%emt 0:01:05]} Nxf3 {[%emt 0:02:38]} 29. Qc2 {[%emt 0:02:04]} Ne5 {[%emt 0:01:39]} 30. b4 {[%emt 0:04:28]} Qf3+ {[%emt 0:02:01]} 31. Kh3 {[%emt 0:01:02]} h5 {[%emt 0:02:40]} 0-1

[Event "Niedersachsen-ch A 2024"]
[Site "Verden Aller"]
[Date "2024.01.05"]
[Round "4.28"]
[White "Schramm, Kilian"]
[Black "Schiller, Jan-Hendrik"]
[Result "1-0"]
[ECO "B06"]
[WhiteElo "1729"]
[BlackElo "1881"]
[Annotator "NA RC"]
[PlyCount "73"]
[EventDate "2024.01.01"]
[EventType "swiss"]
[EventCountry "GER"]
[SourceTitle "playchess.com"]
[Source "ChessBase"]
[SourceQuality "1"]
[TimeControl "40/5400+30:1800+30"]

1. e4 {[%emt 0:00:01]} g6 {[%emt 0:00:23]} 2. d4 {[%emt 0:00:14]} Bg7 {[%emt 0:00:11]} 3. Nf3 {[%emt 0:00:28]} d6 {[%emt 0:00:13]} 4. Bc4 {[%emt 0:00:45]} Nf6 {[%emt 0:02:34]} 5. Qe2 {[%emt 0:00:22]} O-O {[%emt 0:00:42]} 6. h3 {[%emt 0:00:38]} c6 {[%emt 0:02:24]} 7. Bb3 {[%emt 0:02:54]} Qc7 {[%emt 0:02:39]} 8. Bf4 {[%emt 0:00:08]} Nh5 {[%emt 0:03:19]} 9. Bh2 {[%emt 0:00:12]} e5 {[%emt 0:02:23]} 10. c3 {[%emt 0:05:55]} a5 {[%emt 0:03:21]} 11. a4 {[%emt 0:02:11]} Na6 {[%emt 0:03:08]} 12. Nbd2 {[%emt 0:00:48]} Nf4 {[%emt 0:01:22]} 13. Bxf4 {[%emt 0:00:26]} exf4 {[%emt 0:00:12]} 14. O-O {[%emt 0:00:27]} Qe7 {[%emt 0:04:06]} 15. Nc4 {[%emt 0:01:54]} Nc7 {[%emt 0:06:03]} 16. Nb6 {[%emt 0:11:07]} Ra6 {[%emt 0:02:20]} 17. Nxc8 {[%emt 0:00:07]} Rxc8 {[%emt 0:00:13]} 18. Rfe1 {[%emt 0:00:22]} Re8 {[%emt 0:01:32]} 19. Qd2 {[%emt 0:02:04]} g5 {[%emt 0:02:52]} 20. Re2 {[%emt 0:06:18]} Ne6 {[%emt 0:10:39]} 21. Rd1 {[%emt 0:05:41]} Nf8 {[%emt 0:02:36]} 22. Rde1 {[%emt 0:06:10]} Ng6 {[%emt 0:01:04]} 23. e5 {[%emt 0:01:13]} dxe5 {[%emt 0:09:17]} 24. dxe5 {[%emt 0:01:02]} Rd8 {[%emt 0:05:03]} 25. Qc2 {[%emt 0:02:37]} Raa8 {[%emt 0:05:17]} 26. Nd4 {[%emt 0:04:54]} Nh4 {[%emt 0:01:08]} 27. Qe4 {[%emt 0:03:04]} c5 {[%emt 0:07:29]} 28. Nb5 {[%emt 0:01:21]} Ra6 {[%emt 0:02:34]} 29. Nd6 {[%emt 0:01:04]} Raxd6 {[%emt 0:00:07]} 30. exd6 {[%emt 0:00:08]} Qxd6 {[%emt 0:00:51]} 31. Qxb7 {[%emt 0:00:44]} Rd7 {[%emt 0:00:41]} 32. Re8+ {[%emt 0:00:16]} Bf8 {[%emt 0:00:10]} 33. Qc8 {[%emt 0:01:47]} Ng6 {[%emt 0:06:03]} 34. Bc2 {[%emt 0:01:40]} Rc7 {[%emt 0:00:52]} 35. Qa8 {[%emt 0:00:19]} c4 {[%emt 0:02:33]} 36. Bxg6 {[%emt 0:00:19]} hxg6 {[%emt 0:00:14]} 37. Rxf8+ {[%emt 0:00:09]} 1-0

[Event "Niedersachsen-ch A 2024"]
[Site "Verden Aller"]
[Date "2024.01.05"]
[Round "4.29"]
[White "Rausch, Darius"]
[Black "Monnerjahn, Lukas"]
[Result "0-1"]
[ECO "D02"]
[WhiteElo "1742"]
[BlackElo "1856"]
[Annotator "NA RC"]
[PlyCount "100"]
[EventDate "2024.01.01"]
[EventType "swiss"]
[EventCountry "GER"]
[SourceTitle "playchess.com"]
[Source "ChessBase"]
[SourceQuality "1"]
[TimeControl "40/5400+30:1800+30"]

1. d4 {[%emt 0:00:02]} d5 {[%emt 0:00:05]} 2. Bf4 {[%emt 0:00:04]} Nf6 {[%emt 0:00:05]} 3. e3 {[%emt 0:00:03]} c5 {[%emt 0:00:43]} 4. Nf3 {[%emt 0:00:04]} Nc6 {[%emt 0:00:09]} 5. Nbd2 {[%emt 0:00:09]} Qb6 {[%emt 0:00:46]} 6. dxc5 {[%emt 0:00:13]} Qxc5 {[%emt 0:00:08]} 7. a3 {[%emt 0:00:21]} a5 {[%emt 0:06:48]} 8. c4 {[%emt 0:01:42]} e6 {[%emt 0:00:34]} 9. Rc1 {[%emt 0:06:51]} Qb6 {[%emt 0:01:23]} 10. cxd5 {[%emt 0:04:25]} exd5 {[%emt 0:00:17]} 11. Nb3 {[%emt 0:02:35]} Be7 {[%emt 0:01:29]} 12. Qc2 {[%emt 0:08:51]} O-O {[%emt 0:03:09]} 13. Nbd4 {[%emt 0:07:52]} Bd7 {[%emt 0:04:47]} 14. Bd3 {[%emt 0:01:43]} Rac8 {[%emt 0:03:25]} 15. Qb1 {[%emt 0:02:24]} Nxd4 {[%emt 0:01:30]} 16. Nxd4 {[%emt 0:00:15]} Rxc1+ {[%emt 0:00:16]} 17. Qxc1 {[%emt 0:00:06]} Rc8 {[%emt 0:00:08]} 18. Qb1 {[%emt 0:06:06]} Bxa3 {[%emt 0:01:27]} 19. O-O {[%emt 0:02:56]} Qxb2 {[%emt 0:02:32]} 20. Qd1 {[%emt 0:00:55]} Ne4 {[%emt 0:11:22]} 21. f3 {[%emt 0:02:01]} Nd2 {[%emt 0:06:05]} 22. Qe1 {[%emt 0:13:35]} Nxf1 {[%emt 0:00:17]} 23. Qh4 {[%emt 0:00:24]} g6 {[%emt 0:01:11]} 24. Qf6 {[%emt 0:01:22]} Nxe3 {[%emt 0:02:45]} 25. Be2 {[%emt 0:08:37]} Re8 {[%emt 0:01:33]} 26. Kf2 {[%emt 0:07:34]} Bc5 {[%emt 0:03:19]} 27. Bxe3 {[%emt 0:01:55]} Rxe3 {[%emt 0:00:22]} 28. Kxe3 {[%emt 0:00:19]} Bxd4+ {[%emt 0:01:06]} 29. Qxd4 {[%emt 0:00:11]} Qxd4+ {[%emt 0:00:04]} 30. Kxd4 {[%emt 0:00:04]} Bc6 {[%emt 0:00:28]} 31. Kc5 {[%emt 0:00:29]} Kf8 {[%emt 0:00:58]} 32. h4 {[%emt 0:00:24]} h6 {[%emt 0:00:14]} 33. g4 {[%emt 0:00:22]} g5 {[%emt 0:00:12]} 34. hxg5 {[%emt 0:00:54]} hxg5 {[%emt 0:00:01]} 35. Bd1 {[%emt 0:00:28]} Ke7 {[%emt 0:00:18]} 36. Bc2 {[%emt 0:00:22]} Kd7 {[%emt 0:00:31]} 37. Bf5+ {[%emt 0:00:38]} Kc7 {[%emt 0:00:08]} 38. Bc2 {[%emt 0:00:06]} b6+ {[%emt 0:00:11]} 39. Kd4 {[%emt 0:00:15]} Kd6 {[%emt 0:00:16]} 40. Bb3 {[%emt 0:00:40]} f6 {[%emt 0:00:36]} 41. Bc2 {[%emt 0:31:44]} Bb5 {[%emt 0:30:43]} 42. Bd1 {[%emt 0:00:57]} Bc4 {[%emt 0:00:06]} 43. Ke3 {[%emt 0:02:22]} Ke5 {[%emt 0:00:14]} 44. Bc2 {[%emt 0:00:25]} d4+ {[%emt 0:00:10]} 45. Kd2 {[%emt 0:00:13]} b5 {[%emt 0:00:24]} 46. Be4 {[%emt 0:00:20]} b4 {[%emt 0:00:22]} 47. Bc6 {[%emt 0:00:20]} Bd5 {[%emt 0:00:07]} 48. Bd7 {[%emt 0:01:09]} Bxf3 {[%emt 0:00:12]} 49. Kd3 {[%emt 0:00:11]} Kf4 {[%emt 0:00:25]} 50. Kxd4 {[%emt 0:00:11]} Bxg4 {[%emt 0:00:27]} 0-1

[Event "Niedersachsen-ch A 2024"]
[Site "Verden Aller"]
[Date "2024.01.05"]
[Round "4.30"]
[White "Lehmkuhl, Stefan"]
[Black "Burnus, Finn Crispin"]
[Result "1-0"]
[ECO "D35"]
[WhiteElo "1839"]
[BlackElo "1655"]
[Annotator "NA RC"]
[PlyCount "111"]
[EventDate "2024.01.01"]
[EventType "swiss"]
[EventCountry "GER"]
[SourceTitle "playchess.com"]
[Source "ChessBase"]
[SourceQuality "1"]
[TimeControl "40/5400+30:1800+30"]

1. d4 {[%emt 0:00:03]} Nf6 {[%emt 0:00:07]} 2. c4 {[%emt 0:00:35]} e6 {[%emt 0:00:07]} 3. Nf3 {[%emt 0:01:02]} d5 {[%emt 0:00:09]} 4. cxd5 {[%emt 0:00:53]} exd5 {[%emt 0:00:09]} 5. Nc3 {[%emt 0:00:17]} Be7 {[%emt 0:02:17]} 6. Qc2 {[%emt 0:00:57]} O-O {[%emt 0:00:13]} 7. Bf4 {[%emt 0:00:43]} c6 {[%emt 0:02:32]} 8. e3 {[%emt 0:00:06]} Nbd7 {[%emt 0:04:14]} 9. Bd3 {[%emt 0:00:19]} Re8 {[%emt 0:00:19]} 10. O-O {[%emt 0:00:07]} Nf8 {[%emt 0:00:26]} 11. Rab1 {[%emt 0:00:44]} a5 {[%emt 0:02:08]} 12. a3 {[%emt 0:00:59]} Nh5 {[%emt 0:02:30]} 13. Be5 {[%emt 0:00:33]} f6 {[%emt 0:00:21]} 14. Bg3 {[%emt 0:00:05]} Nxg3 {[%emt 0:00:39]} 15. hxg3 {[%emt 0:00:13]} Be6 {[%emt 0:10:21]} 16. Rfc1 {[%emt 0:01:11]} Qd7 {[%emt 0:05:01]} 17. Na4 {[%emt 0:00:29]} Bf7 {[%emt 0:02:31]} 18. Nb6 {[%emt 0:00:18]} Qc7 {[%emt 0:01:13]} 19. Nxa8 {[%emt 0:00:51]} Rxa8 {[%emt 0:00:01]} 20. b4 {[%emt 0:01:58]} axb4 {[%emt 0:02:00]} 21. axb4 {[%emt 0:00:04]} Bg6 {[%emt 0:00:40]} 22. Nh4 {[%emt 0:01:11]} Bxd3 {[%emt 0:02:27]} 23. Qxd3 {[%emt 0:00:48]} g6 {[%emt 0:04:22]} 24. b5 {[%emt 0:00:17]} Kg7 {[%emt 0:02:48]} 25. bxc6 {[%emt 0:00:42]} bxc6 {[%emt 0:00:03]} 26. Qc2 {[%emt 0:01:08]} Rc8 {[%emt 0:01:15]} 27. Nf3 {[%emt 0:01:27]} Ne6 {[%emt 0:00:19]} 28. Qa2 {[%emt 0:00:41]} Qd7 {[%emt 0:00:40]} 29. Rc2 {[%emt 0:02:05]} Rc7 {[%emt 0:02:20]} 30. Rb6 {[%emt 0:05:33]} Nd8 {[%emt 0:01:41]} 31. Qb1 {[%emt 0:01:15]} Kf7 {[%emt 0:01:27]} 32. Ne1 {[%emt 0:02:03]} Kg7 {[%emt 0:00:57]} 33. Nd3 {[%emt 0:00:10]} Kf7 {[%emt 0:01:48]} 34. Nc5 {[%emt 0:00:58]} Bxc5 {[%emt 0:00:07]} 35. Rxc5 {[%emt 0:00:30]} f5 {[%emt 0:02:27]} 36. Rc2 {[%emt 0:01:49]} Ne6 {[%emt 0:06:02]} 37. Rcb2 {[%emt 0:00:55]} Kg7 {[%emt 0:01:40]} 38. Rb7 {[%emt 0:01:52]} Kh6 {[%emt 0:00:08]} 39. Rxc7 {[%emt 0:00:42]} Qxc7 {[%emt 0:00:13]} 40. Rb6 {[%emt 0:01:00]} Qc8 {[%emt 0:01:46]} 41. Qc1 {[%emt 0:31:25]} Nd8 {[%emt 0:31:11]} 42. e4+ {[%emt 0:00:18]} Kg7 {[%emt 0:01:24]} 43. exd5 {[%emt 0:00:10]} Qc7 {[%emt 0:00:40]} 44. Rb1 {[%emt 0:00:43]} Qd6 {[%emt 0:03:01]} 45. dxc6 {[%emt 0:01:15]} Nxc6 {[%emt 0:00:21]} 46. Qc5 {[%emt 0:02:41]} Qd7 {[%emt 0:02:05]} 47. d5 {[%emt 0:00:31]} Ne5 {[%emt 0:01:03]} 48. Ra1 {[%emt 0:01:06]} Kh6 {[%emt 0:00:55]} 49. Qe3+ {[%emt 0:00:12]} g5 {[%emt 0:01:49]} 50. Qxe5 {[%emt 0:00:13]} Qb5 {[%emt 0:00:42]} 51. Qd4 {[%emt 0:01:14]} Kh5 {[%emt 0:02:14]} 52. g4+ {[%emt 0:01:27]} fxg4 {[%emt 0:00:42]} 53. Qg7 {[%emt 0:00:27]} h6 {[%emt 0:00:48]} 54. Qf7+ {[%emt 0:01:32]} Kh4 {[%emt 0:00:07]} 55. Kh2 {[%emt 0:01:24]} Qf1 {[%emt 0:06:08]} 56. g3# {[%emt 0:01:09]} 1-0

[Event "Niedersachsen-ch A 2024"]
[Site "Verden Aller"]
[Date "2024.01.05"]
[Round "4.31"]
[White "Hesse, Juergen"]
[Black "Wilmink, Anna"]
[Result "1/2-1/2"]
[ECO "B23"]
[WhiteElo "1931"]
[BlackElo "1822"]
[Annotator "NA RC"]
[PlyCount "39"]
[EventDate "2024.01.01"]
[EventType "swiss"]
[EventCountry "GER"]
[SourceTitle "playchess.com"]
[Source "ChessBase"]
[SourceQuality "1"]
[TimeControl "40/5400+30:1800+30"]

1. e4 {[%emt 0:00:03]} c5 {[%emt 0:00:13]} 2. Nc3 {[%emt 0:00:14]} Nc6 {[%emt 0:00:49]} 3. f4 {[%emt 0:00:21]} g6 {[%emt 0:01:23]} 4. Nf3 {[%emt 0:00:50]} Bg7 {[%emt 0:00:54]} 5. Bb5 {[%emt 0:00:50]} e6 {[%emt 0:03:15]} 6. Bxc6 {[%emt 0:02:00]} bxc6 {[%emt 0:01:40]} 7. e5 {[%emt 0:02:28]} d5 {[%emt 0:05:36]} 8. d3 {[%emt 0:02:33]} Ba6 {[%emt 0:07:31]} 9. O-O {[%emt 0:09:43]} c4 {[%emt 0:04:51]} 10. d4 {[%emt 0:03:10]} Ne7 {[%emt 0:06:08]} 11. Qe1 {[%emt 0:05:53]} Nf5 {[%emt 0:07:08]} 12. g4 {[%emt 0:05:36]} Ne7 {[%emt 0:04:03]} 13. Qg3 {[%emt 0:02:35]} Bc8 {[%emt 0:05:37]} 14. Nd1 {[%emt 0:03:31]} Qb6 {[%emt 0:06:42]} 15. c3 {[%emt 0:02:51]} Bd7 {[%emt 0:08:29]} 16. Be3 {[%emt 0:03:24]} a5 {[%emt 0:05:08]} 17. Qg2 {[%emt 0:07:48]} a4 {[%emt 0:04:37]} 18. Qc2 {[%emt 0:02:48]} h5 {[%emt 0:03:10]} 19. g5 {[%emt 0:03:40]} O-O {[%emt 0:03:28]} 20. Rb1 {[%emt 0:06:57]} 1/2-1/2